bitfinex/quotes_SOLUSD_20220117
["timestamp","ask_amount","ask_price","bid_price","bid_amount"]
[1642399959777,10.12,142.95,142.84,69.84]
[1642399959978,1.94524427,142.97,142.84,70.09]
[1642399960179,12.44264427,142.97,142.85,10.4974]
[1642399960379,18.44264427,142.97,142.85,10.7474]
[1642399960979,18.44264427,142.97,142.86,36.40814099]
[1642399961181,16.4974,142.97,142.86,36.40814099]
[1642399961379,16.7474,142.97,142.86,36.65814099]
[1642399961581,16.4974,142.97,142.86,36.65814099]
[1642399961980,10.4974,142.97,142.86,36.65814099]
[1642399962881,10.7474,142.97,142.86,36.65814099]
[1642399963387,16.7474,142.97,142.86,36.40814099]
[1642399963684,28.56817588,142.97,142.86,36.40814099]
[1642399964384,1.94524427,142.95,142.86,36.40814099]
[1642399964683,53.75270362,142.94,142.86,36.40814099]
[1642399964883,60.00270362,142.94,142.86,22.9051]
[1642399967185,1.70077588,142.93,142.86,22.9051]
[1642399967387,10.5014,142.92,142.86,22.9051]
[1642399967786,14.4014841,142.92,142.86,22.9051]
[1642399968988,10.7514,142.92,142.86,22.9051]
[1642399971717,47.08910689,142.91,142.86,22.9051]
[1642399971889,47.33910689,142.91,142.86,22.9051]
[1642399972491,47.33910689,142.91,142.88,1.1482189]
[1642399973693,47.33910689,142.91,142.89,6.06380097]
[1642399973890,47.33910689,142.91,142.88,1.1482189]
[1642399974300,0.25,142.91,142.88,1.1482189]
[1642399974491,10.7514,142.92,142.88,1.1482189]
[1642399978201,10.6714,142.92,142.88,1.1482189]
[1642399980033,16.6714,142.92,142.88,1.1482189]
[1642399983738,38.38843837,142.91,142.88,1.1482189]
[1642399983941,44.63843837,142.91,142.88,1.1482189]
[1642399984738,6.25,142.91,142.88,1.1482189]
[1642399984939,0.25,142.91,142.88,1.1482189]
[1642399985238,16.6714,142.92,142.88,1.1482189]
[1642399985841,16.4214,142.92,142.88,1.1482189]
[1642399987941,16.6714,142.92,142.88,1.1482189]
[1642399988241,10.6714,142.92,142.88,1.1482189]
[1642399992949,10.4214,142.92,142.88,1.1482189]
[1642399993149,1.94524427,142.92,142.88,1.1482189]
[1642399993950,1.94524427,142.93,142.88,1.1482189]
[1642399994352,8.19524427,142.93,142.88,1.1482189]
[1642399995153,7.94524427,142.93,142.88,1.1482189]
[1642399996353,1.94524427,142.93,142.88,1.1482189]
[1642399996757,2.19524427,142.93,142.88,1.1482189]
[1642399997056,1.94524427,142.93,142.88,1.3982189]
[1642399997255,1.94524427,142.93,142.89,3.27127957]
[1642399997456,1.94524427,142.94,142.89,3.27127957]
[1642399998488,2.19524427,142.94,142.89,3.27127957]
[1642399998886,0.25,142.94,142.89,3.27127957]
[1642399999291,2.19524427,142.95,142.89,3.27127957]
[1642400000889,0.25,142.95,142.89,3.27127957]
[1642400001497,2.19524427,142.96,142.89,3.27127957]
[1642400002890,2.19524427,142.96,142.88,1.3982189]
[1642400003290,8.19524427,142.96,142.88,1.3982189]
[1642400003590,2.19524427,142.96,142.88,1.1482189]
[1642400003789,8.19524427,142.96,142.88,1.1482189]
[1642400003989,7.94524427,142.96,142.88,1.1482189]
[1642400004590,1.94524427,142.95,142.88,1.1482189]
[1642400004793,46.45411102,142.94,142.88,1.1482189]
[1642400005493,48.64935529,142.94,142.88,1.1482189]
[1642400006394,1.94524427,142.93,142.88,1.1482189]
[1642400006796,1.94524427,142.93,142.88,1.3982189]
[1642400007997,47.2991601,142.95,142.88,1.3982189]
[1642400008397,53.5491601,142.95,142.88,1.3982189]
[1642400009098,53.5491601,142.95,142.88,1.1482189]
[1642400009501,64.0478601,142.95,142.88,1.1482189]
[1642400009701,1.94524427,142.94,142.88,1.1482189]
[1642400009900,2.19524427,142.94,142.88,1.1482189]
[1642400010301,8.19524427,142.94,142.88,1.1482189]
[1642400010701,1.94524427,142.93,142.88,1.1482189]
[1642400010900,12.69584427,142.93,142.88,1.1482189]
[1642400011701,12.69584427,142.93,142.88,0.6482189]
[1642400012601,46.05291225,142.92,142.88,0.6482189]
[1642400013102,46.30291225,142.92,142.88,0.6482189]
[1642400014401,12.44584427,142.93,142.88,0.6482189]
[1642400015605,10.5006,142.93,142.88,0.6482189]
[1642400015806,10.7506,142.93,142.88,0.6482189]
[1642400016407,16.7506,142.93,142.88,0.6482189]
[1642400017008,18.69584427,142.93,142.88,0.6482189]
[1642400032453,1.94524427,142.92,142.88,0.6482189]
[1642400032652,12.44654427,142.92,142.88,0.6482189]
[1642400032857,18.69654427,142.92,142.88,0.6482189]
[1642400033353,1.94524427,142.91,142.88,0.6482189]
[1642400033757,2.19524427,142.91,142.88,0.6482189]
[1642400033957,1.94524427,142.91,142.88,0.6482189]
[1642400034959,18.44654427,142.92,142.88,0.6482189]
[1642400035358,18.69654427,142.92,142.88,0.6482189]
[1642400035959,18.44654427,142.92,142.88,0.6482189]
[1642400037359,18.69654427,142.92,142.88,0.6482189]
[1642400037861,45.15033524,142.91,142.88,0.6482189]
[1642400038359,45.40033524,142.91,142.88,0.6482189]
[1642400038963,47.34557951,142.91,142.88,0.6482189]
[1642400040465,2.19524427,142.91,142.88,0.6482189]
[1642400041166,2.19524427,142.91,142.89,6.06380097]
[1642400041565,44.77931905,142.91,142.89,6.06380097]
[1642400041965,44.77931905,142.91,142.89,3.031601]
[1642400042167,44.77931905,142.91,142.88,0.6482189]
[1642400051999,44.77931905,142.91,142.89,6.06380097]
[1642400052198,44.77931905,142.91,142.88,0.6482189]
[1642400052401,61.28131905,142.91,142.88,0.6482189]
[1642400052999,1.94524427,142.9,142.88,0.6482189]
[1642400053402,8.19524427,142.9,142.88,0.6482189]
[1642400054002,1.94524427,142.89,142.88,0.6482189]
[1642400054499,8.19524427,142.89,142.88,0.6482189]
[1642400055899,8.19524427,142.89,142.79,1.98751786]
[1642400055900,6.25,142.89,142.79,1.98751786]
[1642400056104,69.84,142.87,142.79,1.98751786]
[1642400056501,76.09,142.87,142.79,1.98751786]
[1642400056904,113.80131175,142.86,142.79,1.98751786]
[1642400057106,113.80131175,142.86,142.77,2.91989059]
[1642400057305,10.5072,142.85,142.77,2.91989059]
[1642400057504,16.5072,142.85,142.77,2.91989059]
[1642400057703,16.7572,142.85,142.77,2.91989059]
[1642400057904,18.70244427,142.85,142.77,2.91989059]
[1642400058104,69.84,142.84,142.77,0.93237273]
[1642400058304,44.4555328,142.83,142.77,0.93237273]
[1642400058709,50.7055328,142.83,142.77,0.93237273]
[1642400061309,0.25,142.83,142.77,0.93237273]
[1642400061708,10.5072,142.86,142.77,0.93237273]
[1642400061908,16.7572,142.86,142.77,0.93237273]
[1642400062312,16.7572,142.86,142.78,12.59267486]
[1642400062511,6.25,142.86,142.78,12.59267486]
[1642400062910,0.25,142.86,142.78,12.84267486]
[1642400063113,6.25,142.86,142.79,22.7469]
[1642400063711,0.25,142.86,142.79,22.7469]
[1642400063913,6.25,142.86,142.79,22.7469]
[1642400064410,0.25,142.86,142.79,22.7469]
[1642400064611,6.0,142.86,142.79,22.7469]
[1642400064910,6.0,142.86,142.8,69.84]
[1642400065110,1.94524427,142.88,142.8,69.84]
[1642400065310,1.94524427,142.88,142.81,1.21543554]
[1642400065510,1.94524427,142.9,142.81,1.21543554]
[1642400065710,1.94524427,142.9,142.82,37.43937065]
[1642400065911,1.94524427,142.9,142.82,118.02937065]
[1642400066114,1.94524427,142.9,142.82,119.24480619]
[1642400066515,1.94524427,142.9,142.82,118.02937065]
[1642400066712,44.33816189,142.93,142.82,118.02937065]
[1642400066913,50.58816189,142.93,142.83,24.1183]
[1642400067314,50.58816189,142.93,142.83,24.3683]
[1642400068713,48.64291762,142.93,142.83,24.3683]
[1642400069118,6.25,142.93,142.83,24.3683]
[1642400069416,0.25,142.93,142.83,94.2083]
[1642400069616,9.53050162,142.94,142.83,105.92283554]
[1642400069815,9.78050162,142.94,142.83,105.92283554]
[1642400070218,3.78050162,142.94,142.83,105.92283554]
[1642400070417,1.83525735,142.94,142.83,111.92283554]
[1642400070617,1.83525735,142.94,142.83,105.92283554]
[1642400070817,1.83525735,142.94,142.83,111.92283554]
[1642400071419,1.94524427,142.95,142.83,111.92283554]
[1642400071624,1.94524427,142.95,142.87,10.4957]
[1642400071819,1.94524427,142.95,142.88,69.84]
[1642400072120,3.96664033,142.98,142.9,0.31472789]
[1642400072321,3.96664033,142.98,142.9,6.66272789]
[1642400072519,3.96664033,142.98,142.91,12.59267486]
[1642400072922,10.12,143.03,142.92,69.84]
[1642400073121,10.12,143.03,142.93,23.662]
[1642400073319,6.0,143.03,142.93,31.676]
[1642400073721,3.96664033,143.04,142.93,31.676]
[1642400073722,9.96664033,143.04,142.93,31.676]
[1642400073922,9.96664033,143.04,142.94,37.43937065]
[1642400074321,6.0,143.04,142.94,37.68937065]
[1642400074520,35.27746974,143.06,142.94,48.18037065]
[1642400074920,35.27746974,143.06,142.94,54.18037065]
[1642400075321,31.31082941,143.06,142.94,54.18037065]
[1642400075921,37.31082941,143.06,142.94,48.18037065]
[1642400076121,37.56082941,143.06,142.94,48.18037065]
[1642400076523,37.56082941,143.06,142.94,118.02037065]
[1642400080928,37.56082941,143.06,142.95,24.3767]
[1642400081329,37.56082941,143.06,142.95,24.6267]
[1642400096272,48.05242941,143.06,142.95,24.3767]
[1642400097678,48.05242941,143.06,142.95,25.1244559]
[1642400097875,52.01906974,143.06,142.95,25.1244559]
[1642400098075,41.52746974,143.06,142.95,25.1244559]
[1642400098476,41.52746974,143.06,142.95,31.1244559]
[1642400098879,41.52746974,143.06,142.95,100.9644559]
[1642400099379,41.52746974,143.06,142.95,111.4547559]
[1642400099781,37.56082941,143.06,142.95,111.4547559]
[1642400101380,31.31082941,143.06,142.95,122.79019144]
[1642400101581,7.95159934,143.05,142.95,122.79019144]
[1642400102281,3.96664033,143.05,142.95,122.79019144]
[1642400102480,73.94812099,143.06,142.95,122.79019144]
[1642400103381,74.19812099,143.06,142.95,122.79019144]
[1642400103782,74.19812099,143.06,142.95,122.54019144]
[1642400103982,74.19812099,143.06,142.95,51.4847559]
[1642400104183,80.19812099,143.06,142.95,45.4847559]
[1642400104585,80.19812099,143.06,142.95,51.4847559]
[1642400104984,7.9528055,143.05,142.95,51.4847559]
[1642400105184,7.9528055,143.05,142.95,51.7347559]
[1642400105384,8.2028055,143.05,142.95,51.7347559]
[1642400106085,8.2028055,143.05,142.95,121.5747559]
[1642400106585,4.21664033,143.05,142.95,121.5747559]
[1642400107786,0.25,143.05,142.95,121.5747559]
[1642400107989,84.16476132,143.06,142.95,121.5747559]
[1642400108390,84.16476132,143.06,142.95,115.5747559]
[1642400109388,83.91476132,143.06,142.95,115.5747559]
[1642400109589,41.27746974,143.06,142.95,121.5747559]
[1642400109989,37.31082941,143.06,142.95,121.5747559]
[1642400110395,31.31082941,143.06,142.95,121.5747559]
[1642400111518,35.27746974,143.06,142.95,121.5747559]
[1642400111718,35.52746974,143.06,142.95,121.5747559]
[1642400113422,41.52746974,143.06,142.95,121.5747559]
[1642400113824,37.56082941,143.06,142.95,121.5747559]
[1642400115722,37.56082941,143.06,142.95,122.79019144]
[1642400115922,31.56082941,143.06,142.95,122.79019144]
[1642400116924,31.31082941,143.06,142.95,122.79019144]
[1642400118725,37.31082941,143.06,142.95,121.077]
[1642400118926,37.56082941,143.06,142.95,121.077]
[1642400119625,3.98546466,143.05,142.95,45.237]
[1642400119826,39.16226127,143.04,142.95,45.237]
[1642400120225,39.41226127,143.04,142.95,45.237]
[1642400120426,39.41226127,143.04,142.95,34.4967]
[1642400120626,39.41226127,143.04,142.95,24.3767]
[1642400120827,45.41226127,143.04,142.95,24.3767]
[1642400121025,55.90506127,143.04,142.95,24.3767]
[1642400121427,3.98645155,143.03,142.95,24.3767]
[1642400121630,7.95309188,143.03,142.95,24.3767]
[1642400121828,8.20309188,143.03,142.95,24.6267]
[1642400122627,6.25,143.03,142.95,24.6267]
[1642400122828,0.25,143.03,142.95,24.6267]
[1642400123027,43.3789016,143.04,142.96,3.9902913]
[1642400123228,3.96664033,143.04,142.96,3.9902913]
[1642400123427,3.96664033,143.04,142.96,10.6152913]
[1642400123628,3.96664033,143.04,142.97,1.21543554]
[1642400123829,3.96664033,143.04,142.99,10.4873]
[1642400124027,3.96664033,143.04,142.99,16.9463]
[1642400124230,3.96664033,143.04,143.0,46.04175421]
[1642400124428,31.31082941,143.06,143.0,46.29175421]
[1642400125128,31.31082941,143.06,143.0,46.04175421]
[1642400125329,31.31082941,143.06,143.0,46.29175421]
[1642400126329,31.31082941,143.06,143.0,52.42275421]
[1642400126631,31.31082941,143.06,143.0,64.12498975]
[1642400126933,31.31082941,143.06,143.01,69.84]
[1642400127132,31.31082941,143.06,143.01,79.96]
[1642400127331,31.31082941,143.06,143.01,80.21]
[1642400128631,31.31082941,143.06,143.03,69.84]
[1642400128832,31.31082941,143.06,143.04,6.06380097]
[1642400129231,31.31082941,143.06,143.04,6.31380097]
[1642400129435,31.31082941,143.06,143.05,37.9902913]
[1642400129832,31.31082941,143.06,143.05,4.2402913]
[1642400131837,31.31082941,143.06,143.05,3.9902913]
[1642400133549,31.31082941,143.06,143.05,4.2402913]
[1642400140847,31.31082941,143.06,143.05,3.9902913]
[1642400141449,31.31082941,143.06,143.04,16.54780097]
[1642400141646,31.31082941,143.06,143.04,16.79780097]
[1642400142546,31.31082941,143.06,143.04,64.27521856]
[1642400144147,31.31082941,143.06,143.04,134.11521856]
[1642400145174,31.31082941,143.06,143.04,86.63780097]
[1642400157490,31.31082941,143.06,143.05,142.96]
[1642400157890,31.31082941,143.06,143.05,143.21]
[1642400159392,31.31082941,143.06,143.05,80.21]
[1642400159692,31.31082941,143.06,143.05,10.37]
[1642400160694,31.31082941,143.06,143.05,120.21]
[1642400160996,31.31082941,143.06,143.05,80.21]
[1642400167898,31.31082941,143.06,143.05,10.37]
[1642400175440,31.31082941,143.06,143.05,10.12]
[1642400175842,31.31082941,143.06,143.04,6.06380097]
[1642400176341,31.31082941,143.06,143.02,10.12]
[1642400176540,31.31082941,143.06,143.04,3.03219997]
[1642400176740,31.31082941,143.06,143.03,38.89824409]
[1642400176939,31.31082941,143.06,143.05,3.031601]
[1642400177540,31.31082941,143.06,143.03,38.89824409]
[1642400177742,31.31082941,143.06,143.04,3.03219997]
[1642400177941,31.31082941,143.06,143.04,3.28219997]
[1642400178345,31.31082941,143.06,143.05,3.031601]
[1642400178944,31.31082941,143.06,143.05,2.031601]
[1642400179145,31.31082941,143.06,143.04,3.28219997]
[1642400179345,31.31082941,143.06,143.04,0.25]
[1642400179746,31.31082941,143.06,143.05,3.03219997]
[1642400180146,31.31082941,143.06,143.05,5.06380097]
[1642400182849,32.31142838,143.06,143.03,39.14824409]
[1642400184353,31.31082941,143.06,143.03,39.14824409]
[1642400184553,31.31082941,143.06,143.04,5.06380097]
[1642400184953,31.31082941,143.06,143.04,5.31380097]
[1642400186561,31.31082941,143.06,143.04,2.031601]
[1642400186757,1.00059897,143.05,143.0,10.12]
[1642400186961,1.25059897,143.05,143.0,10.12]
[1642400187161,1.25059897,143.05,142.97,10.12]
[1642400187357,1.25059897,143.05,142.98,43.99350494]
[1642400188461,1.00059897,143.05,142.98,43.99350494]
[1642400189459,1.25059897,143.05,142.98,44.24350494]
[1642400190963,1.25059897,143.05,142.98,114.08350494]
[1642400191160,0.25,143.05,142.98,44.24350494]
[1642400191361,31.56082941,143.06,142.98,44.24350494]
[1642400191762,31.56082941,143.06,142.98,55.94683246]
[1642400191963,31.31082941,143.06,142.99,10.12]
[1642400192364,31.31082941,143.06,142.99,10.37]
[1642400192563,31.31082941,143.06,143.0,71.05522752]
[1642400192766,31.31082941,143.06,143.01,16.15854057]
[1642400192968,31.31082941,143.06,143.01,16.40854057]
[1642400193366,31.31082941,143.06,143.01,28.10628163]
[1642400193570,31.31082941,143.06,143.01,97.94628163]
[1642400194170,31.31082941,143.06,143.01,103.94628163]
[1642400198899,31.31082941,143.06,143.01,97.94628163]
[1642400199100,31.31082941,143.06,143.01,96.73464057]
[1642400199298,31.31082941,143.06,143.01,90.6961]
[1642400199499,31.31082941,143.06,143.01,20.8561]
[1642400199703,31.31082941,143.06,143.01,10.12]
[1642400200200,68.15928622,143.06,143.01,10.12]
[1642400200800,68.15928622,143.06,143.01,10.37]
[1642400204404,68.40928622,143.06,143.01,10.12]
[1642400207613,68.15928622,143.06,143.01,10.12]
[1642400208011,68.15928622,143.06,143.01,10.37]
[1642400208510,31.31082941,143.06,143.01,10.37]
[1642400212813,31.31082941,143.06,143.01,10.12]
[1642400213014,31.56082941,143.06,143.01,10.12]
[1642400213414,31.56082941,143.06,142.98,20.6081]
[1642400214916,31.56082941,143.06,142.98,20.8581]
[1642400215320,37.56082941,143.06,142.98,20.8581]
[1642400215518,31.31082941,143.06,142.98,20.8581]
[1642400217022,37.31082941,143.06,142.98,44.4745]
[1642400217223,31.31082941,143.06,142.98,44.4745]
[1642400217822,37.31082941,143.06,142.98,44.4745]
[1642400218022,31.31082941,143.06,142.98,44.4745]
[1642400221726,31.31082941,143.06,142.98,45.40687273]
[1642400222830,31.31082941,143.06,142.98,44.4745]
[1642400224457,31.31082941,143.06,142.98,50.4745]
[1642400224856,31.31082941,143.06,142.98,61.37101339]
[1642400225457,31.31082941,143.06,142.99,80.3271]
[1642400225657,31.31082941,143.06,142.99,90.4471]
[1642400225857,31.31082941,143.06,142.99,90.6971]
[1642400226159,26.01412093,143.08,142.99,90.6971]
[1642400226358,0.25,143.08,142.99,90.6971]
[1642400226558,0.25,143.08,143.0,24.1649]
[1642400226961,0.25,143.08,143.0,24.4149]
[1642400227360,0.25,143.08,143.01,20.90913953]
[1642400227561,0.25,143.1,143.01,20.90913953]
[1642400227763,89.43835964,143.11,143.01,21.15913953]
[1642400228563,3.96664033,143.1,143.01,21.15913953]
[1642400228963,10.21664033,143.1,143.01,21.15913953]
[1642400229364,14.20247059,143.1,143.01,21.15913953]
[1642400230566,14.20247059,143.1,143.01,22.37078059]
[1642400230765,10.21664033,143.1,143.01,22.37078059]
[1642400230968,3.96664033,143.1,143.01,22.37078059]
[1642400231169,3.96664033,143.1,143.01,54.66031621]
[1642400231365,3.96664033,143.1,143.01,60.66031621]
[1642400231565,3.96664033,143.13,143.01,60.66031621]
[1642400231766,3.96664033,143.13,143.03,69.84]
[1642400231965,3.96664033,143.13,143.04,69.41681905]
[1642400232169,3.96664033,143.13,143.04,70.62846011]
[1642400232372,3.96664033,143.13,143.05,1.21164106]
[1642400232667,9.96664033,143.13,143.04,69.66681905]
[1642400232867,6.0,143.13,143.04,69.66681905]
[1642400233066,6.25,143.13,143.04,69.66681905]
[1642400233266,0.25,143.13,143.04,69.66681905]
[1642400233468,53.02876264,143.14,143.04,69.66681905]
[1642400233469,53.27876264,143.14,143.04,69.66681905]
[1642400233669,53.27876264,143.14,143.04,80.15061905]
[1642400234371,6.25,143.14,143.04,80.15061905]
[1642400235370,35.92435049,143.13,143.04,80.15061905]
[1642400235769,42.17435049,143.13,143.04,80.15061905]
[1642400235971,42.17435049,143.13,143.04,33.2331]
[1642400236471,61.14445049,143.13,143.04,33.2331]
[1642400236875,61.14445049,143.13,143.05,44.5366609]
[1642400237371,61.14445049,143.13,143.05,44.7866609]
[1642400237576,52.66045049,143.13,143.05,44.7866609]
[1642400239977,52.66045049,143.13,143.05,44.5366609]
[1642400240375,52.66045049,143.13,143.05,44.7866609]
[1642400243279,52.66045049,143.13,143.05,44.5366609]
[1642400244181,52.66045049,143.13,143.05,44.7866609]
[1642400244381,52.66045049,143.13,143.05,0.25]
[1642400244981,52.66045049,143.13,143.04,33.2331]
[1642400245181,52.66045049,143.13,143.01,21.80373562]
[1642400245384,52.66045049,143.13,143.01,75.29356417]
[1642400247383,52.66045049,143.13,143.01,75.54356417]
[1642400249186,52.41045049,143.13,143.01,75.54356417]
[1642400251091,52.41045049,143.13,143.03,0.93237273]
[1642400251293,52.41045049,143.13,143.01,75.54356417]
[1642400254295,56.37709082,143.13,143.01,75.54356417]
[1642400254795,67.10039082,143.13,143.01,75.54356417]
[1642400259321,69.84,143.12,143.01,75.54356417]
[1642400259521,80.3267,143.12,143.01,75.54356417]
[1642400259821,86.5767,143.12,143.01,75.54356417]
[1642400260622,93.2297,143.12,143.01,24.7655]
[1642400260822,10.49,143.08,143.01,24.7655]
[1642400261222,16.74,143.08,143.01,24.7655]
[1642400261623,44.81748374,143.07,143.01,24.7655]
[1642400261823,51.06748374,143.07,143.01,24.7655]
[1642400262223,61.55768374,143.07,143.01,24.7655]
[1642400262423,70.07268374,143.07,142.97,11.68373562]
[1642400262826,70.07268374,143.07,142.97,0.25]
[1642400263225,70.07268374,143.07,142.96,10.12]
[1642400263428,73.48892302,143.06,142.96,10.12]
[1642400263629,10.4928,143.04,142.96,10.12]
[1642400263926,51.98138867,143.04,142.96,10.12]
[1642400264226,6.25,143.04,142.96,10.12]
[1642400264427,3.64892302,143.06,142.97,22.5817]
[1642400265028,3.64892302,143.06,142.97,22.8317]
[1642400265227,47.79036931,143.06,142.98,23.81901678]
[1642400265428,58.28156931,143.06,142.98,23.81901678]
[1642400265828,64.53156931,143.06,142.98,23.81901678]
[1642400266431,60.88264629,143.06,142.98,23.81901678]
[1642400269639,60.88264629,143.06,142.95,24.2632]
[1642400270245,130.72264629,143.06,142.95,24.2632]
[1642400270637,132.42342217,143.06,142.95,24.2632]
[1642400273143,142.54342217,143.06,142.93,38.93104999]
[1642400273943,35.02144492,143.03,142.93,38.93104999]
[1642400274143,35.1833921,143.0,142.93,38.93104999]
[1642400274346,41.4333921,143.0,142.92,34.2865]
[1642400274545,41.4333921,143.0,142.92,34.5365]
[1642400274943,41.4333921,143.0,142.93,22.9344]
[1642400277475,6.25,143.0,142.93,22.9344]
[1642400278377,6.25,143.0,142.92,51.44532206]
[1642400278576,40.30412379,143.0,142.92,51.44532206]
[1642400278777,46.30412379,143.0,142.92,51.44532206]
[1642400279077,6.25,143.0,142.92,51.44532206]
[1642400279278,10.4934,143.03,142.93,23.5514]
[1642400279674,10.4934,143.03,142.93,23.8014]
[1642400279675,16.4934,143.03,142.93,23.8014]
[1642400280278,58.58045647,143.03,142.93,23.8014]
[1642400280476,10.4934,143.03,142.93,23.8014]
[1642400280877,10.7434,143.03,142.93,23.8014]
[1642400281275,10.7434,143.03,142.93,23.5514]
[1642400281676,58.5277676,143.02,142.93,23.5514]
[1642400281879,64.7777676,143.02,142.93,23.5514]
[1642400283380,16.7444,143.02,142.93,23.8014]
[1642400283784,16.7444,143.02,142.93,23.5514]
[1642400283984,16.7444,143.02,142.86,481.35132136]
[1642400283985,27.16775789,143.02,142.86,481.35132136]
[1642400284185,1.70077588,143.01,142.86,464.34907192]
[1642400284384,80.3405,142.97,142.86,464.34907192]
[1642400284582,10.12,142.96,142.85,3.88124309]
[1642400284781,17.82077588,142.96,142.85,3.88124309]
[1642400284981,46.26708898,142.95,142.85,3.88124309]
[1642400285384,50.5663131,142.95,142.86,23.6929]
[1642400285983,61.0648131,142.95,142.86,23.6929]
[1642400286186,130.9048131,142.95,142.86,23.6929]
[1642400286383,71.1848131,142.95,142.86,23.6929]
[1642400287186,71.1848131,142.95,142.86,58.76577553]
[1642400287686,71.1848131,142.95,142.86,23.6929]
[1642400297093,74.83573902,142.95,142.86,23.6929]
[1642400298395,30.26942592,142.95,142.86,23.6929]
[1642400299299,37.8373207,142.94,142.86,23.6929]
[1642400302531,6.0,142.95,142.86,34.1899]
[1642400302730,26.6172,142.97,142.86,40.1899]
[1642400302929,26.6172,142.97,142.86,110.0299]
[1642400303133,16.4972,142.97,142.86,110.0299]
[1642400303333,16.4972,142.97,142.87,1.1946211]
[1642400303531,54.51412911,142.97,142.88,28.49020647]
[1642400303732,48.51412911,142.97,142.88,28.49020647]
[1642400304132,54.51412911,142.97,142.88,28.49020647]
[1642400304334,10.4972,142.97,142.88,28.49020647]
[1642400304532,10.4957,142.99,142.88,37.15820647]
[1642400304733,10.4957,142.99,142.89,22.5765]
[1642400305332,10.12,142.98,142.89,22.5765]
[1642400305834,16.12,142.98,142.89,22.5765]
[1642400306232,40.57348162,142.97,142.89,22.5765]
[1642400306432,10.4978,142.96,142.89,22.5765]
[1642400306835,16.4978,142.96,142.89,22.5765]
[1642400307335,6.0,142.96,142.89,22.5765]
[1642400307738,46.57348162,142.97,142.89,22.5765]
[1642400311839,57.07038162,142.97,142.89,22.5765]
[1642400322689,57.07038162,142.97,142.84,69.84]
[1642400322887,57.07038162,142.97,142.85,37.36571365]
[1642400323788,57.07038162,142.97,142.86,24.4672]
[1642400325189,10.12,142.96,142.86,24.4672]
[1642400325389,10.5007,142.93,142.86,24.4672]
[1642400325791,38.66731429,142.92,142.86,24.4672]
[1642400326189,44.66731429,142.92,142.86,24.4672]
[1642400327391,55.16801429,142.92,142.86,24.4672]
[1642400328893,16.5007,142.92,142.86,53.96922312]
[1642400329995,56.53015898,142.92,142.86,53.96922312]
[1642400330196,56.53015898,142.92,142.86,24.4672]
[1642400336310,16.5007,142.92,142.86,24.4672]
[1642400336505,6.0,142.92,142.86,24.4672]
[1642400337004,16.12,142.96,142.86,24.4672]
[1642400337605,6.0,142.96,142.86,34.9642]
[1642400337905,57.14508521,142.97,142.86,34.9642]
[1642400338606,51.14508521,142.97,142.86,34.9642]
[1642400339908,57.14508521,142.97,142.86,34.9642]
[1642400341811,57.14508521,142.97,142.86,24.4672]
[1642400342610,67.26508521,142.97,142.86,24.4672]
[1642400345817,67.51508521,142.97,142.86,24.4672]
[1642400346018,67.51508521,142.97,142.87,20.38498786]
[1642400346217,67.51508521,142.97,142.86,24.4672]
[1642400347018,1.90015699,142.94,142.86,24.4672]
[1642400347317,39.92829739,142.93,142.86,24.4672]
[1642400347718,46.17829739,142.93,142.86,24.4672]
[1642400347918,40.17829739,142.93,142.86,24.4672]
[1642400348122,46.17829739,142.93,142.86,24.4672]
[1642400348321,40.17829739,142.93,142.86,24.4672]
[1642400348522,0.25,142.93,142.87,27.08775059]
[1642400348719,1.90015699,142.95,142.87,35.79775059]
[1642400348921,1.90015699,142.94,142.87,35.79775059]
[1642400349519,36.9998309,142.94,142.88,23.8739]
[1642400349719,35.09967391,142.94,142.88,23.8739]
[1642400355324,41.09967391,142.94,142.88,23.8739]
[1642400355727,42.9998309,142.94,142.88,23.8739]
[1642400356526,53.4989309,142.94,142.83,23.922]
[1642400356729,53.4989309,142.94,142.83,24.172]
[1642400356926,63.6189309,142.94,142.83,24.172]
[1642400357326,63.6189309,142.94,142.84,24.4217]
[1642400357526,63.6189309,142.94,142.84,42.8683895]
[1642400358326,1.90015699,142.93,142.84,42.8683895]
[1642400358527,12.40035699,142.93,142.84,42.8683895]
[1642400358727,12.65035699,142.93,142.84,42.8683895]
[1642400359128,12.65035699,142.93,142.84,24.4217]
[1642400360132,18.65035699,142.93,142.84,24.4217]
[1642400361234,10.12,142.92,142.84,24.4217]
[1642400361433,10.5023,142.9,142.84,24.4217]
[1642400361935,16.7523,142.9,142.84,24.4217]
[1642400362132,46.76835913,142.89,142.84,24.4217]